bitfinex/quotes_ETHUSD_20250331
["timestamp","ask_amount","ask_price","bid_price","bid_amount"]
[1743414628457,10.2336,1788.6,1788.2,11.18415]
[1743414629195,10.2336,1788.6,1788.3,5.59189]
[1743414629688,1.508,1789.0,1788.4,1.6217]
[1743414629904,4.43181327,1790.6,1788.8,5.59022]
[1743414629905,3.24415391,1789.1,1788.8,5.59022]
[1743414630202,5.58981,1789.0,1788.7,1.6091]
[1743414630560,10.46438391,1788.9,1788.5,12.93731]
[1743414630762,8.59035,1788.8,1788.5,11.32821]
[1743414631002,3.0,1788.8,1788.6,0.05590257]
[1743414631203,3.0,1788.8,1788.5,11.32812]
[1743414631362,3.0,1788.8,1788.5,11.32811]
[1743414631563,8.59034,1788.8,1788.6,0.2615605]
[1743414631759,3.24415391,1788.7,1788.6,0.2615605]
[1743414632086,3.24415391,1788.7,1788.5,5.59122]
[1743414632291,3.0,1789.0,1788.6,7.44287411]
[1743414632493,6.24415391,1788.8,1788.6,0.25451411]
[1743414632660,11.83450391,1788.8,1788.6,0.25451411]
[1743414633160,6.24415391,1788.8,1788.6,5.90128701]
[1743414633410,6.24415391,1788.8,1788.6,0.25451411]
[1743414633978,6.24415391,1788.8,1788.6,5.90133702]
[1743414634206,6.24415391,1788.8,1788.6,5.84543411]
[1743414634428,6.24415391,1788.8,1788.6,5.90133702]
[1743414634602,6.24415391,1788.8,1788.6,11.49216702]
[1743414634935,6.24415391,1788.8,1788.6,5.84534411]
[1743414635116,1.5355,1788.9,1788.6,11.43619411]
[1743414635434,5.58878,1789.3,1788.9,5.58984]
[1743414635435,10.35733391,1789.3,1788.9,5.58984]
[1743414635613,3.24415391,1789.1,1788.9,5.58984]
[1743414635932,3.24415391,1789.3,1789.1,5.58912]
[1743414636099,10.46003391,1789.5,1789.2,5.58909]
[1743414636296,3.0,1789.4,1789.3,0.25714025]
[1743414636502,10.46003391,1789.5,1789.3,0.25714025]
[1743414636898,5.58846,1789.4,1788.9,12.91612]
[1743414637103,3.24415391,1789.2,1789.0,0.25714025]
[1743414637318,3.24415391,1789.2,1789.0,5.84682025]
[1743414637710,14.42260391,1789.2,1789.0,0.25714025]
[1743414638116,3.0,1789.1,1789.0,0.25714025]
[1743414638336,8.5894,1789.1,1789.0,0.25714025]
[1743414638706,5.58987,1789.0,1788.7,5.736]
[1743414638915,3.24415391,1788.9,1788.8,0.25661496]
[1743414641034,6.24415391,1789.1,1788.9,5.58992]
[1743414641236,6.24415391,1789.1,1789.0,5.58971]
[1743414641432,6.24415391,1789.1,1788.9,5.58992]
[1743414641609,6.24415391,1789.1,1789.0,0.25661496]
[1743414641810,11.83355391,1789.1,1789.0,0.25661496]
[1743414642011,11.1803,1788.9,1788.7,5.736]
[1743414642194,3.0,1788.7,1788.4,5.59153]
[1743414642394,8.83533391,1788.6,1788.3,7.21184]
[1743414642632,3.24415391,1788.6,1788.3,12.85950055]
[1743414642932,3.0,1788.5,1788.3,1.6201]
[1743414643239,3.0,1788.5,1788.2,16.92026]
[1743414643407,3.0,1788.5,1788.3,5.59185]
[1743414643599,3.0,1788.5,1788.3,5.64776175]
[1743414644233,3.0,1788.5,1788.1,12.95573]
[1743414644234,3.24415391,1788.4,1788.1,12.95573]
[1743414644414,3.24415391,1788.4,1788.1,18.54815]
[1743414644800,3.24415391,1788.4,1788.2,5.85307129]
[1743414645001,3.0,1788.5,1788.3,5.5919]
[1743414645306,3.0,1788.6,1788.4,5.59159]
[1743414645640,3.0,1788.6,1788.5,0.26087129]
[1743414646599,1.6509,1788.9,1788.5,1.85167129]
[1743414646936,6.24415391,1788.7,1788.6,0.26087129]
[1743414647135,11.83490391,1788.7,1788.4,5.59146]
[1743414647302,11.83490391,1788.7,1788.5,0.26087129]
[1743414647628,3.0,1788.6,1788.5,0.26087129]
[1743414647836,8.59096,1788.6,1788.5,0.26087129]
[1743414648029,15.79048,1788.6,1788.3,5.64769104]
[1743414648236,10.19936,1788.6,1788.5,0.26087129]
[1743414648431,3.0,1788.6,1788.3,11.23944104]
[1743414648648,3.0,1788.6,1788.5,5.85214129]
[1743414648817,3.0,1788.6,1788.5,5.59127]
[1743414649020,3.0,1788.6,1788.5,5.85214129]
[1743414649218,3.0,1788.6,1788.5,0.26087129]
[1743414649415,3.0,1788.6,1788.5,7.46214129]
[1743414649655,3.0,1788.8,1788.6,5.59096]
[1743414650209,8.59039,1788.8,1788.7,0.26087129]
[1743414650408,11.83454391,1788.8,1788.7,0.26087129]
[1743414650639,11.83454391,1788.8,1788.5,7.20112]
[1743414650819,11.83454391,1788.8,1788.7,0.26087129]
[1743414651015,11.83454391,1788.8,1788.5,7.20112]
[1743414651537,17.42506391,1788.8,1788.6,0.26087129]
[1743414651743,3.0,1788.7,1788.6,0.26087129]
[1743414651939,8.59065,1788.7,1788.6,0.26087129]
[1743414652304,3.0,1788.7,1788.6,5.59096]
[1743414652506,3.0,1788.7,1788.6,5.85183129]
[1743414652739,3.0,1788.7,1788.6,0.26087129]
[1743414653407,3.0,1788.7,1788.6,5.85183129]
[1743414653742,1.5038,1789.1,1788.7,5.59065]
[1743414654042,8.58964,1789.1,1788.7,11.1813]
[1743414654209,14.17929,1789.1,1788.8,0.26087129]
[1743414654409,3.24415391,1789.0,1788.8,0.26087129]
[1743414655008,11.83379391,1789.1,1788.8,5.85097129]
[1743414656040,11.83379391,1789.1,1788.9,5.58982]
[1743414656041,6.24415391,1789.1,1788.9,5.58982]
[1743414656243,3.0,1789.2,1789.1,5.5894]
[1743414656430,3.24415391,1789.3,1789.1,5.5893]
[1743414656634,43.57823,1789.8,1789.2,5.58909]
[1743414656635,1.6139,1789.8,1789.2,5.58909]
[1743414656837,3.24415391,1789.7,1789.5,5.58786]
[1743414657036,4.85805391,1789.8,1789.5,11.23174763]
[1743414657349,5.58735,1789.8,1789.6,0.25724524]
[1743414657649,5.58695,1789.9,1789.6,5.58777]
[1743414657875,3.0,1789.8,1789.7,0.25714017]
[1743414658143,1.6175,1790.0,1789.7,5.58752]
[1743414658342,1.6175,1790.0,1789.8,5.84427017]
[1743414658542,3.24415391,1790.1,1789.8,7.47637017]
[1743414658926,8.83044391,1790.1,1789.8,1.88924017]
[1743414659127,3.24415391,1789.9,1789.8,0.25714017]
[1743414659648,3.24415391,1789.9,1789.6,7.10743]
[1743414659843,3.24415391,1789.9,1789.8,0.25335914]
[1743414660022,3.24415391,1789.9,1789.6,7.10743]
[1743414660377,3.24415391,1789.9,1789.6,7.1074]
[1743414660560,3.24415391,1789.9,1789.7,0.25335914]
[1743414660917,3.24415391,1789.9,1789.6,7.10736]
[1743414661218,8.83106391,1789.9,1789.7,0.25335914]
[1743414661434,6.24415391,1789.8,1789.7,0.25335914]
[1743414661647,11.83137391,1789.8,1789.5,5.58795]
[1743414661829,8.58722,1789.8,1789.7,0.25335914]
[1743414662033,5.58758,1789.7,1789.3,18.43383]
[1743414662240,3.24415391,1789.6,1789.3,18.43383]
[1743414662753,3.24415391,1789.6,1789.4,5.58845]
[1743414663251,3.24415391,1789.6,1789.3,18.43382]
[1743414663452,3.24415391,1789.6,1789.4,5.58841]
[1743414664171,3.24415391,1789.6,1789.4,5.55031]
[1743414664378,3.24415391,1789.6,1789.3,12.84517]
[1743414665074,3.24415391,1789.6,1789.3,18.43378]
[1743414665470,3.24415391,1789.6,1789.3,18.43384]
[1743414665855,3.24415391,1789.6,1789.3,18.43378]
[1743414666173,3.24415391,1789.4,1789.2,5.58905]
[1743414666379,3.24415391,1789.4,1789.1,7.18243]
[1743414666539,3.24415391,1789.4,1789.1,7.23831724]
[1743414666746,3.24415391,1789.4,1789.1,7.18243]
[1743414667148,3.24415391,1789.2,1789.0,11.17923]
[1743414667347,3.24415391,1789.2,1789.1,5.5894]
[1743414668267,3.0,1789.5,1789.2,5.58905]
[1743414668446,3.24415391,1789.5,1789.2,7.15679]
[1743414668775,3.0,1789.4,1789.2,7.15675]
[1743414668982,3.0,1789.4,1789.2,5.58895]
[1743414669790,3.24415391,1789.3,1789.0,7.221]
[1743414669976,8.83355391,1789.1,1788.8,7.25613]
[1743414670185,3.24415391,1789.1,1788.9,5.64577407]
[1743414670351,3.24415391,1789.1,1788.9,11.23565407]
[1743414670695,3.24415391,1789.1,1788.8,7.2561]
[1743414670878,3.24415391,1789.1,1788.9,5.59]
[1743414671058,3.24415391,1789.1,1788.8,12.84626]
[1743414671255,3.24415391,1789.1,1788.9,5.58992]
[1743414671455,3.24415391,1789.1,1788.8,7.25599]
[1743414671885,8.83355391,1789.1,1788.8,7.25599]
[1743414672079,3.24415391,1788.9,1788.7,46.759]
[1743414672387,3.24415391,1788.9,1788.7,52.34953]
[1743414672558,8.83424391,1788.9,1788.7,46.759]
[1743414672758,8.83424391,1788.9,1788.6,5.59092]
[1743414673158,8.83424391,1788.9,1788.6,0.05589983]
[1743414673364,3.0,1788.8,1788.6,5.59096]
[1743414673686,3.24415391,1788.7,1788.5,5.59126]
[1743414673888,3.24415391,1788.7,1788.4,12.89842]
[1743414674190,3.24415391,1788.7,1788.3,5.59183]
[1743414674191,3.24415391,1788.5,1788.3,11.32278]
[1743414674686,3.24415391,1788.5,1788.4,0.25703523]
[1743414675159,7.12339,1788.7,1788.4,0.25703523]
[1743414675160,10.36754391,1788.7,1788.4,0.31294587]
[1743414675353,10.36754391,1788.7,1788.4,5.90437587]
[1743414675986,3.24415391,1788.7,1788.4,5.90437587]
[1743414676189,3.24415391,1788.7,1788.5,5.59127]
[1743414676391,3.24415391,1788.7,1788.4,5.84846523]
[1743414676685,3.24415391,1788.7,1788.4,5.64733834]
[1743414676990,3.24415391,1788.7,1788.5,0.25703523]
[1743414678060,8.83485391,1788.7,1788.5,0.25703523]
[1743414678365,5.59096,1788.6,1788.5,0.25703523]
[1743414678569,5.59096,1788.6,1788.3,11.32285]
[1743414678771,10.45015391,1788.7,1788.4,5.90437434]
[1743414679355,16.04103391,1788.7,1788.4,0.25703523]
[1743414679560,16.04103391,1788.7,1788.4,0.31294365]
[1743414679891,5.59097,1788.6,1788.4,0.25703523]
[1743414680094,5.59127,1788.5,1788.4,0.25703523]
[1743414680260,8.83542391,1788.5,1788.2,12.97125]
[1743414680660,8.83542391,1788.5,1788.1,25.68498]
[1743414680888,8.83542391,1788.5,1788.2,5.59214]
[1743414681266,3.24415391,1788.5,1788.3,0.31326312]
[1743414681572,3.24415391,1788.5,1788.3,5.90515312]
[1743414682396,3.24415391,1788.5,1788.3,5.84924055]
[1743414682593,8.83562391,1788.5,1788.3,0.25735055]
[1743414682761,5.59159,1788.4,1788.3,0.25735055]
[1743414683195,5.59159,1788.4,1788.2,0.05591539]
[1743414683362,10.40329391,1788.3,1788.0,32.248]
[1743414683563,8.83676391,1788.1,1787.8,7.14672]
[1743414683763,8.83676391,1788.1,1787.8,21.64672]
[1743414684267,3.24415391,1788.1,1787.9,5.59305]
[1743414686094,3.24415391,1788.1,1787.8,12.74028]
[1743414686597,3.24415391,1788.1,1787.9,5.59313]
[1743414686976,3.24415391,1788.1,1787.8,12.74024]
[1743414687914,8.83687391,1788.1,1787.8,7.14682]
[1743414688066,8.83687391,1788.1,1787.8,7.2027464]
[1743414688565,3.24415391,1788.1,1787.8,12.7961064]
[1743414688760,8.83689391,1788.1,1787.8,7.14676]
[1743414688994,8.83689391,1788.1,1787.8,7.20268643]
[1743414689208,8.83689391,1788.1,1787.7,25.8247]
[1743414689209,5.59295,1788.0,1787.7,31.41838]
[1743414689504,5.59295,1788.0,1787.4,5.59458]
[1743414689505,5.59377,1787.7,1787.4,5.59458]
[1743414689802,3.24415391,1787.5,1787.4,7.18441]
[1743414690008,6.24415391,1787.7,1787.4,12.83494759]
[1743414690210,11.83797391,1787.7,1787.4,7.1843]
[1743414690428,5.59413,1787.6,1787.4,1.64563785]
[1743414690702,19.00204391,1787.7,1787.3,58.08395]
[1743414690912,5.5943,1787.6,1787.3,58.08396]
[1743414691271,5.5943,1787.6,1787.3,58.0839]
[1743414691475,13.40798391,1787.7,1787.3,37.989]
[1743414691676,10.16383,1787.7,1787.4,11.18911]
[1743414691877,11.83744391,1787.9,1787.6,5.59409]
[1743414692100,6.24415391,1787.9,1787.7,5.59374]
[1743414692300,17.43066391,1787.9,1787.6,5.59406]
[1743414692502,3.0,1787.7,1787.5,7.21599]
[1743414692876,3.0,1787.7,1787.5,1.6217]
[1743414693174,3.0,1787.7,1787.5,7.2161]
[1743414693804,8.59387,1787.7,1787.5,1.6217]
[1743414694112,8.59387,1787.7,1787.3,50.8427]
[1743414694315,8.59387,1787.7,1787.4,5.5947]
[1743414694816,14.18781,1787.7,1787.3,50.84258]
[1743414695003,8.59387,1787.7,1787.3,50.84258]
[1743414695203,8.59387,1787.7,1787.4,5.59467]
[1743414695522,3.0,1787.7,1787.5,5.65021776]
[1743414695717,3.0,1787.7,1787.6,5.59409]
[1743414695913,5.59379,1787.7,1787.4,5.59467]
[1743414696117,5.59379,1787.7,1787.4,11.18928]
[1743414696411,14.1875,1787.8,1787.4,11.18917]
[1743414696619,8.59351,1787.8,1787.5,1.6662]
[1743414696918,8.59351,1787.8,1787.5,7.26054]
[1743414697220,14.18714,1787.8,1787.5,7.26054]
[1743414697388,8.59351,1787.8,1787.5,7.26054]
[1743414697717,5.59253,1788.1,1787.8,5.59321]
[1743414697718,5.59256,1788.1,1787.8,5.59321]
[1743414698015,5.59266,1788.1,1787.8,7.20701]
[1743414698219,8.59259,1788.1,1787.8,1.6138]
[1743414698407,8.59259,1788.1,1787.8,1.66972666]
[1743414698606,14.18532,1788.1,1787.8,1.66972666]
[1743414699212,5.59284,1788.0,1787.8,1.6138]
[1743414699595,5.59284,1788.0,1787.8,1.66972763]
[1743414699795,5.59284,1788.0,1787.8,1.6138]
[1743414700301,5.59284,1788.0,1787.7,11.32562]
[1743414700498,5.59346,1787.8,1787.7,5.732]
[1743414701628,5.5938,1787.7,1787.4,7.12547]
[1743414701825,5.5938,1787.7,1787.4,12.85647]
[1743414702128,8.83761391,1787.8,1787.4,18.45104]
[1743414702292,5.59407,1787.7,1787.4,7.2619]
[1743414702497,11.18803,1787.7,1787.4,12.85658]
[1743414702721,11.18803,1787.7,1787.4,7.2619]
[1743414703107,11.18803,1787.7,1787.3,43.44778]
[1743414703108,5.5944,1787.5,1787.3,5.731]
[1743414703308,5.59473,1787.4,1787.1,11.32647]
[1743414703633,5.59473,1787.4,1787.0,7.3412]
[1743414703634,5.59517,1787.3,1787.0,7.3412]
[1743414703806,5.59544,1787.2,1786.9,5.59605]
[1743414704127,3.24415391,1787.2,1786.9,11.32705]
[1743414704709,11.19048,1787.3,1787.0,0.24607459]
[1743414704910,5.59543,1787.2,1787.0,0.24607459]
[1743414705303,5.59565,1787.1,1787.0,0.24607459]
[1743414705740,11.19155,1787.1,1786.7,5.59683]
[1743414705944,5.59603,1787.0,1786.8,0.24607459]
[1743414706106,10.50079391,1787.2,1786.9,5.59627]
[1743414706302,4.90535391,1787.2,1786.9,5.59627]
[1743414706635,4.90535391,1787.2,1787.0,0.24607459]
[1743414706803,8.59511,1787.3,1787.0,7.52667967]
[1743414706999,14.19033,1787.3,1787.0,1.87487459]
[1743414707314,8.59511,1787.3,1787.0,1.87487459]
[1743414707508,8.83949391,1787.2,1787.0,0.24607459]
[1743414707720,5.59565,1787.1,1787.0,0.24607459]
[1743414707920,8.83949391,1787.2,1786.8,12.72495]
[1743414708120,8.83949391,1787.2,1786.9,5.59621]
[1743414708323,8.59506,1787.3,1787.0,5.89798769]
[1743414708527,14.19029,1787.3,1787.0,0.24607459]
[1743414708836,5.5954,1787.2,1787.0,0.24607459]
[1743414709032,8.83955391,1787.2,1787.0,0.24607459]
[1743414709236,3.24415391,1787.2,1787.0,0.24607459]
[1743414709442,3.24415391,1787.2,1786.8,12.72503]
[1743414709636,6.24415391,1787.2,1787.1,0.24607459]
[1743414709939,4.6579,1787.6,1787.2,5.59506]
[1743414710246,7.90205391,1787.6,1787.2,5.59534]
[1743414710450,13.49623391,1787.6,1787.3,0.25022243]
[1743414710842,7.90205391,1787.6,1787.3,0.25022243]
[1743414711047,7.16116,1787.9,1787.5,11.18866]
[1743414711246,15.99864391,1787.9,1787.5,5.59426]
[1743414711415,3.0,1787.8,1787.5,5.59426]
[1743414711617,3.0,1787.8,1787.6,0.25022243]
[1743414711941,6.24415391,1787.7,1787.6,0.25022243]
[1743414712113,11.83792391,1787.7,1787.6,0.25022243]
[1743414712534,11.83792391,1787.7,1787.4,5.59465]
[1743414712738,11.83792391,1787.7,1787.5,0.2474393]
[1743414713457,6.24415391,1787.7,1787.6,5.59409]
[1743414713615,4.81205391,1787.9,1787.7,5.59361]
[1743414713820,3.0,1787.8,1787.7,5.59361]
[1743414714020,4.81205391,1787.9,1787.7,5.59361]
[1743414714244,10.40523391,1787.9,1787.6,5.59409]
[1743414714555,3.0,1787.8,1787.6,5.59409]
[1743414714756,3.0,1787.8,1787.6,11.18807]
[1743414714955,1.6083,1788.1,1787.8,5.59322]
[1743414715114,4.6083,1788.1,1787.9,5.59314]
[1743414715315,3.0,1788.1,1787.9,5.59314]
[1743414715844,3.0,1788.1,1787.8,11.18657]
[1743414716018,8.59253,1788.1,1787.7,16.91839]
[1743414716424,3.0,1788.1,1787.8,7.21222]
[1743414716819,3.24415391,1788.0,1787.7,5.59375]
[1743414717046,10.42432391,1788.0,1787.6,12.94307]
[1743414717348,16.01746391,1788.0,1787.6,18.53686]
[1743414717646,10.42432391,1788.0,1787.7,11.18727]
[1743414718350,10.42432391,1788.0,1787.7,5.59361]
[1743414718535,10.42432391,1788.0,1787.6,7.349]
[1743414718536,16.01734391,1788.0,1787.6,12.94296]
[1743414718723,16.01734391,1788.0,1787.6,18.53692]
[1743414719043,10.42427391,1788.0,1787.6,18.53591]
[1743414719251,16.01740391,1788.0,1787.6,12.94195]
[1743414719452,4.83125391,1788.0,1787.7,5.59362]
[1743414719647,4.83125391,1788.0,1787.7,5.64954933]
[1743414719851,3.24415391,1788.0,1787.8,5.84056444]
[1743414720155,3.24415391,1788.0,1787.8,5.84048444]
[1743414720321,3.0,1788.0,1787.9,5.59315]
[1743414720522,3.0,1788.0,1787.9,0.24754429]
[1743414720737,3.0,1788.0,1787.7,5.59373]
[1743414720738,8.59284,1788.0,1787.7,11.18741]
[1743414720948,3.0,1788.0,1787.8,0.24754429]
[1743414721460,8.59264,1788.1,1787.8,5.84086429]
[1743414721633,14.18542,1788.1,1787.8,0.24754429]
[1743414722044,5.59285,1788.0,1787.8,0.24754429]
[1743414722356,14.43014391,1788.0,1787.8,0.24754429]
[1743414722659,3.0,1787.9,1787.6,12.94194]
[1743414722845,8.59316,1787.9,1787.6,7.21294]
[1743414723015,8.59316,1787.9,1787.6,12.94194]
[1743414723457,5.5936,1787.8,1787.6,1.619]
[1743414723657,5.59417,1787.6,1787.3,1.621]
[1743414723827,8.83832391,1787.6,1787.3,12.94389]
[1743414724951,14.43256391,1787.6,1787.3,12.94389]
[1743414725140,14.18769,1787.7,1787.3,18.53882]
[1743414725341,8.59385,1787.7,1787.3,7.349]
[1743414725529,5.59415,1787.6,1787.3,12.99989358]
[1743414725734,5.59415,1787.6,1787.3,12.94395]
[1743414725934,14.43260391,1787.6,1787.3,7.349]
[1743414726132,8.59381,1787.7,1787.3,12.99994359]
[1743414726451,8.59381,1787.7,1787.4,5.59465]
[1743414726840,14.18779,1787.7,1787.4,5.59465]
[1743414727054,8.59381,1787.7,1787.4,5.59465]
[1743414727250,14.18774,1787.7,1787.4,5.59465]
[1743414727562,8.59381,1787.7,1787.3,12.94393]
[1743414728368,5.59416,1787.6,1787.3,12.94393]
[1743414729465,8.83831391,1787.6,1787.3,12.94393]
[1743414729769,8.83831391,1787.6,1787.3,11.32293]
[1743414730064,1.6462,1787.5,1787.2,37.87328]
[1743414730269,1.6462,1787.5,1787.2,49.19651]
[1743414730563,14.43265391,1787.6,1787.2,43.60123]
[1743414730778,5.59448,1787.5,1787.2,11.32323]
[1743414730934,5.59471,1787.4,1787.2,5.728]
[1743414731140,5.5944,1787.5,1787.2,11.37913608]
[1743414731454,11.18895,1787.5,1787.2,5.728]
[1743414731659,5.5944,1787.5,1787.2,5.78394534]
[1743414731864,8.83829391,1787.6,1787.2,11.37928534]
[1743414732171,5.59429,1787.6,1787.2,11.32331]
[1743414732329,5.59427,1787.6,1787.2,11.3233]
[1743414732524,5.59427,1787.6,1787.3,20.09503]
[1743414732729,11.1885,1787.6,1787.3,20.09503]
[1743414733229,5.59423,1787.6,1787.3,20.09503]
[1743414733458,5.59423,1787.6,1787.3,14.5]
[1743414733459,11.18852,1787.6,1787.3,14.5]
[1743414733757,5.59423,1787.6,1787.2,16.91846]
[1743414733960,12.79092,1787.6,1787.2,11.32323]
[1743414734140,5.59441,1787.5,1787.2,11.32321]
[1743414734339,5.59441,1787.5,1787.2,25.82321]
[1743414734881,5.59441,1787.5,1787.1,7.24759]
[1743414734882,8.83856391,1787.5,1787.3,0.24906654]
[1743414735035,5.59471,1787.4,1787.3,0.24906654]
[1743414735567,8.83856391,1787.5,1787.3,0.24890904]
[1743414735736,14.43313391,1787.5,1787.3,0.24890904]
[1743414735932,7.19644,1787.6,1787.3,5.84388904]
[1743414736137,5.59422,1787.6,1787.3,5.84388904]
[1743414736538,5.59422,1787.6,1787.3,0.24890904]
[1743414736869,5.59451,1787.5,1787.3,0.24890904]
[1743414737734,5.59422,1787.6,1787.3,0.24890904]
[1743414738234,5.59422,1787.6,1787.3,5.84392904]
[1743414738567,6.24415391,1787.7,1787.3,0.24890904]
[1743414738777,3.0,1787.8,1787.5,5.5943]
[1743414738963,3.0,1787.8,1787.6,0.24948657]
[1743414739135,8.5935,1787.8,1787.6,0.24948657]
[1743414740874,8.5935,1787.8,1787.5,5.726]
[1743414741060,8.5935,1787.8,1787.7,0.24859423]
[1743414741240,8.5935,1787.8,1787.5,5.726]
[1743414741441,8.5935,1787.8,1787.6,0.24859423]
[1743414741666,14.18712,1787.8,1787.6,0.24859423]
[1743414742173,8.5935,1787.8,1787.6,0.24859423]
[1743414742465,8.59377,1787.7,1787.6,0.24859423]
[1743414743373,10.17057,1787.7,1787.6,0.24859423]
[1743414748561,5.59467,1787.5,1787.2,7.3559]
[1743414748763,8.83882391,1787.5,1787.3,0.30433312]
[1743414749069,5.59467,1787.5,1787.3,0.30433312]
[1743414749271,11.1893,1787.5,1787.3,0.30433312]
[1743414749446,5.59463,1787.5,1787.3,0.30433312]
[1743414749774,11.18918,1787.5,1787.3,0.24838891]
[1743414749952,11.18918,1787.5,1787.2,0.05594422]
[1743414750149,5.59455,1787.5,1787.3,0.2484939]
[1743414751548,5.59455,1787.5,1787.1,27.40671]
[1743414751748,5.59455,1787.5,1787.2,0.30480567]
[1743414752265,5.59455,1787.5,1787.2,0.2488614]
[1743414752448,5.59455,1787.5,1787.2,0.30480568]
[1743414752654,11.18916,1787.5,1787.2,0.2488614]
[1743414752852,3.24415391,1787.3,1786.3,5.59809]
[1743414753051,11.19105,1787.2,1786.8,12.97873]
[1743414753284,10.34244391,1787.1,1786.7,37.8749]
[1743414753450,10.34243391,1787.1,1786.8,5.65245875]
[1743414753777,5.59538,1787.2,1786.8,5.59653]
[1743414753947,5.59567,1787.1,1786.8,5.65248873]
[1743414754451,11.19154,1787.1,1786.7,43.47176]
[1743414754749,11.19154,1787.1,1786.8,0.05595877]
[1743414754956,5.59567,1787.1,1786.7,43.47176]
[1743414755155,11.19147,1787.1,1786.8,14.5]
[1743414756350,11.19155,1787.1,1786.8,14.5]
[1743414756794,5.59544,1787.2,1786.9,1.5357]
[1743414756950,5.59544,1787.2,1786.9,7.187896]
[1743414757277,3.0,1787.2,1786.9,7.13188]
[1743414757469,3.0,1787.3,1787.0,5.59585]
[1743414757666,3.0,1787.3,1787.1,14.5]
[1743414757873,8.59504,1787.3,1787.1,14.5]
[1743414758052,14.19024,1787.3,1787.1,14.5]
[1743414758380,5.59534,1787.2,1787.1,14.5]
[1743414758583,7.12879,1787.2,1786.8,5.59647]
[1743414758771,12.72436,1787.2,1786.8,5.59647]
[1743414758958,5.59539,1787.2,1786.9,5.59627]
[1743414759280,11.19089,1787.2,1786.8,20.09644]
[1743414760060,5.59578,1787.1,1786.8,14.5]
[1743414760466,5.59539,1787.2,1786.8,14.5]
[1743414760679,11.19093,1787.2,1786.8,20.09645]
[1743414760892,5.59578,1787.1,1786.8,20.09645]
[1743414762183,13.37265391,1787.3,1786.8,14.5]
[1743414762485,3.0,1787.3,1787.0,11.19172]
[1743414762684,8.59505,1787.3,1787.0,5.59586]
[1743414763502,8.59505,1787.3,1787.0,5.59585]
[1743414763712,8.59505,1787.3,1787.0,20.09585]
[1743414763849,8.59505,1787.3,1787.0,5.59585]
[1743414764259,14.19023,1787.3,1787.0,5.59585]
[1743414764463,8.59505,1787.3,1787.0,5.59585]
[1743414764665,8.59505,1787.3,1787.1,0.253062]
[1743414764867,3.0,1787.3,1787.1,0.253062]
[1743414765182,3.0,1787.3,1787.1,5.59556]
[1743414765385,3.0,1787.3,1787.2,0.253062]
[1743414765589,1.6521,1787.6,1787.2,7.09664]
[1743414765764,1.6521,1787.6,1787.3,5.59503]
[1743414765976,12.84064,1787.6,1787.3,0.253062]
[1743414766305,3.0,1787.5,1787.3,0.253062]
[1743414767264,11.83859391,1787.5,1787.3,0.253062]
[1743414767768,11.1897,1787.4,1787.0,16.91582]
[1743414767968,3.24415391,1787.3,1787.1,5.59561]
[1743414768191,3.24415391,1787.3,1787.1,5.65155932]
[1743414768406,0.88388639,1787.3,1787.1,5.65146932]
[1743414768561,11.83861391,1787.5,1787.1,5.65146932]
[1743414768907,11.83861391,1787.5,1787.2,5.59514]
[1743414769562,17.43322391,1787.5,1787.2,7.11564]
[1743414769765,5.59556,1787.2,1786.8,23.02891]
[1743414770067,0.00170178,1787.4,1787.1,1.5205]
[1743414770270,0.00170178,1787.4,1787.3,7.66553]
[1743414773167,0.00170178,1787.4,1787.3,7.721461]
[1743414773766,0.00170178,1787.4,1787.3,22.16553]
[1743414774076,0.00170178,1787.4,1787.3,12.83653]
[1743414775172,0.00170178,1787.4,1787.3,14.679703]
[1743414776197,0.00170178,1787.4,1787.3,15.229703]
[1743414778732,0.00170178,1787.4,1787.3,12.83653]
[1743414779841,0.00170178,1787.4,1787.3,13.08602149]
[1743414780842,0.00170178,1787.4,1787.3,13.08502149]
[1743414781206,0.00170178,1787.4,1787.3,11.56452149]
[1743414781527,0.00170178,1787.4,1787.3,5.84452149]
[1743414782400,0.00170178,1787.4,1787.3,5.90046336]
[1743414782730,0.00170178,1787.4,1787.3,5.84452149]
[1743414782914,0.00170178,1787.4,1787.3,5.90046191]
[1743414783126,0.00170178,1787.4,1787.3,5.84452149]
[1743414783803,0.00170178,1787.4,1787.3,5.83907327]
[1743414784510,0.00170178,1787.4,1787.3,0.24404327]
[1743414784705,7.44989735,1787.4,1787.3,0.24404327]
[1743414784909,7.44709735,1787.4,1787.3,0.24404327]
[1743414785150,1.5261,1787.1,1786.8,5.719]
[1743414785309,1.5261,1787.1,1786.9,5.59618]
[1743414786012,1.5261,1787.1,1786.8,11.31548]
[1743414786214,5.59677,1786.8,1786.4,5.59775]
[1743414786522,3.24415391,1786.6,1786.4,5.59783]
[1743414786709,3.24415391,1786.6,1786.3,11.19615]
[1743414787125,3.24415391,1786.6,1786.2,5.719]
[1743414787126,3.24415391,1786.6,1786.4,11.19552]
[1743414787342,3.24415391,1786.8,1786.6,5.59708]
[1743414787565,7.06371803,1786.8,1786.7,5.59691]
[1743414787850,7.06371803,1786.8,1786.6,5.59708]
[1743414788082,12.66031803,1786.8,1786.5,5.59743]
[1743414788339,7.06371803,1786.8,1786.6,5.65303597]
[1743414788508,4.06371803,1786.8,1786.7,5.59691]
[1743414788714,6.24415391,1787.0,1786.8,5.59639]
[1743414788920,3.24415391,1787.0,1786.8,5.59639]
[1743414789656,11.84031391,1787.0,1786.6,16.9133]
[1743414789863,3.24415391,1786.8,1786.6,11.3161]
[1743414790172,3.24415391,1786.8,1786.6,16.91315]
[1743414790459,3.0,1787.0,1786.7,5.59691]
[1743414790625,3.54415391,1786.9,1786.7,5.59691]
[1743414790958,3.54415391,1786.9,1786.6,5.59716]
[1743414791174,3.24415391,1786.7,1786.6,5.59716]
[1743414791860,8.13135391,1786.9,1786.7,5.5969]
[1743414792066,0.3,1786.9,1786.7,5.59681]
[1743414792267,3.24415391,1787.0,1786.8,5.59647]
[1743414792425,1.5344,1787.1,1786.9,5.59628]